bitfinex-derivatives/quotes_ETHF0:USTF0_20241229
["timestamp","ask_amount","ask_price","bid_price","bid_amount"]
[1735488378522,3.50496,3371.1,3371.0,0.4357]
[1735488378826,0.29722,3370.3,3370.2,6.93624023]
[1735488379024,0.29722,3370.3,3369.5,21.17593827]
[1735488379025,0.29723,3370.2,3370.1,11.5927334]
[1735488379220,0.75713,3370.2,3370.1,11.5927334]
[1735488379527,3.40902464,3370.2,3370.1,11.5927334]
[1735488379926,3.40902464,3370.2,3370.1,11.49031709]
[1735488380332,0.29729,3369.6,3369.5,6.99612329]
[1735488380719,3.2078,3370.3,3369.5,10.42001793]
[1735488381025,0.4599,3370.7,3370.2,3.2078]
[1735488381217,0.29722,3370.4,3370.3,40.8]
[1735488382027,0.4599,3370.7,3370.3,40.8]
[1735488382028,0.29721,3370.5,3370.3,40.8]
[1735488382425,0.4599,3370.7,3370.2,3.2078]
[1735488382626,0.29721,3370.5,3370.2,3.2078]
[1735488383131,0.29721,3370.5,3370.1,0.4262]
[1735488383942,0.29721,3370.5,3370.1,0.72344]
[1735488384332,3.95457987,3370.7,3369.9,40.8]
[1735488384333,3.2078,3370.3,3369.9,40.8]
[1735488384631,0.29724,3370.2,3369.7,1.17907]
[1735488384831,0.76284,3370.2,3369.7,1.17907]
[1735488385032,0.4656,3370.2,3369.7,1.17907]
[1735488385229,0.4656,3370.2,3369.7,0.8818]
[1735488385425,1.35,3370.2,3369.7,0.8818]
[1735488385629,0.29726,3370.0,3369.7,0.8818]
[1735488386032,0.29726,3369.9,3369.7,0.8818]
[1735488386936,0.29729,3369.6,3369.5,3.2078]
[1735488387234,2.22989464,3370.0,3369.3,6.99612329]
[1735488387235,0.2973,3369.4,3369.3,6.99612329]
[1735488388032,2.22989464,3369.4,3368.8,40.8]
[1735488388235,0.29736,3368.8,3368.7,3.2078]
[1735488389530,3.49467987,3369.2,3368.7,3.2078]
[1735488389931,0.29736,3368.9,3368.7,3.2078]
[1735488390626,0.4334,3369.1,3368.7,3.2078]
[1735488390829,0.29735,3368.9,3368.7,3.2078]
[1735488392339,0.29735,3368.9,3368.4,0.72519]
[1735488392735,0.29737,3368.7,3368.4,0.4278]
[1735488393039,3.2078,3369.0,3368.2,3.2078]
[1735488393437,0.2974,3368.3,3368.0,0.4618]
[1735488393645,0.4657,3368.2,3368.0,0.4618]
[1735488393838,0.76311,3368.2,3368.0,0.4618]
[1735488394038,0.4657,3368.2,3368.0,0.4618]
[1735488394336,0.76311,3368.2,3368.0,0.4618]
[1735488394538,0.4657,3368.2,3368.0,0.4618]
[1735488394942,0.76311,3368.2,3368.0,0.4618]
[1735488395143,0.4657,3368.2,3367.7,3.2078]
[1735488395445,0.29744,3367.8,3367.7,3.2078]
[1735488396445,0.29744,3367.8,3366.9,3.2078]
[1735488396446,0.29749,3367.4,3366.9,3.2078]
[1735488396654,0.29749,3367.4,3366.9,3.95702]
[1735488396833,0.4643,3367.3,3366.9,3.6595]
[1735488397035,0.4643,3367.3,3366.9,3.95702]
[1735488397232,0.4643,3367.3,3366.9,3.6595]
[1735488397442,0.4643,3367.3,3366.9,3.95702]
[1735488398142,0.4643,3367.3,3366.9,3.6595]
[1735488398342,0.2975,3367.2,3366.9,3.6595]
[1735488399044,0.76179,3367.3,3366.9,3.6595]
[1735488399935,0.4643,3367.3,3366.9,3.6595]
[1735488400146,0.76179,3367.3,3366.9,3.6595]
[1735488400336,3.2078,3367.4,3366.9,3.6595]
[1735488400643,0.75355,3367.7,3367.2,0.2975]
[1735488402143,0.4515,3368.0,3367.3,3.2078]
[1735488402344,0.4515,3368.0,3367.6,0.29746]
[1735488402736,0.4515,3368.0,3367.7,0.29745]
[1735488403042,0.4515,3368.0,3367.4,41.2605]
[1735488403043,2.22989464,3368.1,3367.4,41.7193]
[1735488403239,2.94951464,3368.1,3367.6,0.29746]
[1735488403543,2.94951464,3368.1,3367.7,0.4584]
[1735488403739,0.4222,3368.1,3367.7,0.4584]
[1735488403942,3.2078,3368.2,3367.9,0.29744]
[1735488404141,3.2078,3368.2,3367.7,3.6662]
[1735488404343,3.2078,3368.2,3368.0,0.29742]
[1735488404740,3.2078,3368.2,3368.1,0.4605]
[1735488405240,3.2078,3368.9,3368.1,3.6683]
[1735488405435,3.2078,3368.9,3368.2,0.4285]
[1735488405638,2.22989464,3368.7,3368.2,0.4285]
[1735488405937,0.29739,3368.5,3368.2,0.4285]
[1735488406138,3.2078,3368.5,3368.1,0.4605]
[1735488406442,2.52726464,3368.7,3368.3,0.29739]
[1735488406637,0.4645,3368.8,3368.4,0.29739]
[1735488406838,0.29737,3368.7,3368.5,0.4436]
[1735488408144,0.29737,3368.6,3368.5,0.4436]
[1735488408651,0.29744,3367.8,3367.7,3.2078]
[1735488408937,3.2078,3368.1,3367.5,0.446839]
[1735488409145,0.29746,3367.7,3367.5,0.446839]
[1735488409733,0.4239,3368.0,3367.5,0.446839]
[1735488409938,0.29744,3367.9,3367.5,0.744309]
[1735488410139,0.29745,3367.8,3367.5,0.446839]
[1735488410341,0.29746,3367.6,3367.5,0.446839]
[1735488411144,0.29746,3367.6,3367.5,0.003239]
[1735488411443,3.50526,3367.6,3367.5,0.003239]
[1735488412151,0.29752,3366.9,3366.8,0.4367]
[1735488412944,0.29754,3366.8,3366.6,44.0078]
[1735488413455,0.29754,3366.8,3366.6,3.2078]
[1735488414245,2.22989464,3367.3,3366.6,3.2078]
[1735488414549,0.29754,3366.8,3366.6,3.2078]
[1735488414950,0.29754,3366.7,3366.6,3.2078]
[1735488415744,2.22989464,3367.0,3366.6,3.2078]
[1735488416051,0.29754,3366.8,3366.6,3.2078]
[1735488416553,0.29751,3367.1,3366.7,0.29754]
[1735488416745,0.29751,3367.1,3366.8,0.29753]
[1735488416948,0.29751,3367.1,3366.7,0.29754]
[1735488418155,2.22989464,3367.3,3366.7,0.29754]
[1735488418352,0.29752,3367.0,3366.7,0.29754]
[1735488418749,0.29752,3367.0,3366.6,3.2078]
[1735488418950,0.29751,3367.1,3366.8,0.29753]
[1735488419252,0.29751,3367.1,3366.9,0.4365]
[1735488419650,0.4509,3367.4,3366.9,0.4365]
[1735488419853,0.29749,3367.3,3366.9,0.73402]
[1735488420456,0.29748,3367.5,3367.1,0.29751]
[1735488420753,0.29748,3367.5,3367.2,0.4509]
[1735488420947,3.2078,3367.6,3367.2,0.74839]
[1735488421154,3.2078,3367.6,3367.5,0.29747]
[1735488421842,5.43769464,3368.5,3367.4,3.2078]
[1735488422245,0.2974,3368.3,3367.4,3.9515]
[1735488422452,0.2974,3368.3,3368.0,0.29742]
[1735488422655,0.2974,3368.4,3368.1,0.871]
[1735488422854,2.22989464,3368.5,3368.1,1.16841]
[1735488423057,2.22989464,3368.8,3368.2,0.2974]
[1735488423255,0.29739,3368.4,3368.1,1.16841]
[1735488423553,0.29739,3368.5,3368.2,0.29741]
[1735488423853,0.29739,3368.5,3368.1,1.16841]
[1735488424048,0.2974,3368.3,3368.1,0.871]
[1735488424450,2.22989464,3368.8,3368.1,0.871]
[1735488424644,0.2974,3368.3,3368.1,0.871]
[1735488425255,0.2974,3368.4,3368.1,0.871]
[1735488425857,0.29736,3368.7,3368.3,0.2974]
[1735488426159,3.2078,3368.9,3368.1,0.871]
[1735488426350,3.50515,3368.9,3368.2,3.2078]
[1735488426555,3.50515,3368.9,3368.5,0.29738]
[1735488426856,0.29736,3368.8,3368.5,0.29738]
[1735488427154,2.22989464,3368.8,3368.2,3.2078]
[1735488427455,0.29738,3368.6,3368.2,3.50521]
[1735488427661,2.22989464,3368.8,3368.2,3.2078]
[1735488427846,0.29737,3368.7,3368.3,0.29739]
[1735488428249,0.29738,3368.6,3368.2,3.50521]
[1735488428449,0.29737,3368.7,3368.3,0.29739]
[1735488429958,2.22989464,3368.8,3368.2,3.2078]
[1735488430263,0.29738,3368.6,3368.2,3.50521]
[1735488430460,2.22989464,3368.8,3368.2,3.2078]
[1735488430758,2.22989464,3368.8,3368.1,0.871]
[1735488430957,0.29738,3368.6,3368.2,0.2974]
[1735488431455,0.29738,3368.5,3368.1,1.16841]
[1735488431654,0.29737,3368.7,3368.3,0.2974]
[1735488431855,3.2078,3368.9,3368.6,0.29737]
[1735488432054,3.2078,3368.9,3368.7,0.4551]
[1735488432658,0.29734,3369.0,3368.7,0.4551]
[1735488432862,0.29733,3369.1,3368.7,0.75246]
[1735488433162,0.29734,3369.0,3368.7,0.4551]
[1735488433354,2.22989464,3369.1,3368.7,0.4551]
[1735488433556,0.29736,3368.8,3368.7,0.4551]
[1735488433756,0.29735,3368.9,3368.7,0.4551]
[1735488434154,2.22989464,3369.1,3368.7,0.4551]
[1735488434459,0.29735,3368.9,3368.7,0.4551]
[1735488434861,2.22989464,3369.1,3368.7,0.75246]
[1735488435060,3.49467987,3369.6,3368.7,0.4551]
[1735488435261,2.52722464,3369.1,3369.0,3.2078]
[1735488435665,5.43769464,3369.1,3368.2,3.6465]
[1735488435858,0.29738,3368.5,3368.2,0.879]
[1735488436053,0.4434,3369.0,3368.2,0.879]
[1735488436266,0.29735,3368.9,3368.4,0.29739]
[1735488436561,3.2078,3369.2,3368.2,0.879]
[1735488436756,0.29735,3368.9,3368.5,3.2078]
[1735488436958,0.29733,3369.1,3368.7,0.29736]
[1735488437153,2.67329464,3369.4,3368.8,0.4403]
[1735488437363,2.67329464,3369.4,3368.9,0.4641]
[1735488437364,0.29734,3369.0,3368.9,0.4641]
[1735488437863,0.29733,3369.1,3368.9,0.4641]
[1735488438060,0.29733,3369.2,3368.9,0.4641]
[1735488438263,0.29734,3369.0,3368.9,0.4641]
[1735488440464,3.2078,3369.1,3368.3,0.2974]
[1735488440662,3.2078,3369.1,3368.5,0.4247]
[1735488440855,0.29736,3368.8,3368.5,0.4247]
[1735488441462,3.2078,3369.1,3368.5,0.4247]
[1735488441667,0.29735,3368.9,3368.5,0.4247]
[1735488442181,3.2078,3369.1,3368.5,0.4247]
[1735488442470,0.29735,3368.9,3368.5,0.4247]
[1735488442664,3.2078,3369.1,3368.5,0.4247]
[1735488442868,3.2078,3369.1,3368.5,3.6325]
[1735488443268,3.50513,3369.1,3368.7,0.29736]
[1735488444269,0.29734,3369.0,3368.6,0.29737]
[1735488444765,3.2078,3369.1,3368.5,3.6325]
[1735488445069,3.50514,3369.1,3368.6,0.29736]
[1735488445466,3.2078,3369.1,3368.6,0.29736]
[1735488445668,0.29734,3369.0,3368.6,0.29736]
[1735488446060,3.50513,3369.1,3368.7,0.29736]
[1735488446464,2.67329464,3369.4,3368.8,0.72815]
[1735488446672,0.4434,3369.4,3368.8,0.4308]
[1735488447079,0.29733,3369.2,3368.8,0.4308]
[1735488447371,0.29734,3369.1,3368.8,0.4308]
[1735488447567,0.29734,3369.1,3368.6,0.29737]
[1735488447870,0.29734,3369.1,3368.6,0.75377]
[1735488448064,0.29734,3369.1,3368.7,0.29736]
[1735488448466,0.4434,3369.4,3368.6,0.4564]
[1735488448670,3.2078,3369.1,3368.6,0.4564]
[1735488449074,0.29736,3368.7,3368.6,0.4564]
[1735488449769,0.29736,3368.8,3368.6,0.4564]
[1735488450370,0.29736,3368.7,3368.5,3.6325]
[1735488450568,0.75626,3368.7,3368.5,3.6325]
[1735488451372,0.29737,3368.6,3368.5,0.4247]
[1735488452471,0.29739,3368.4,3368.3,0.4564]
[1735488453076,0.4261,3368.6,3368.1,3.96031]
[1735488453077,0.4261,3368.6,3368.1,3.6629]
[1735488453278,0.29741,3368.2,3368.1,3.6629]
[1735488453868,0.29741,3368.2,3368.1,3.2078]
[1735488454968,0.2974,3368.3,3368.1,3.2078]
[1735488455679,0.2974,3368.3,3368.2,0.4418]
[1735488455878,0.4261,3368.6,3368.2,0.4418]
[1735488456079,0.2974,3368.3,3368.2,0.4418]
[1735488457683,0.29738,3368.5,3368.2,0.4418]
[1735488457979,0.2974,3368.4,3368.2,0.4418]
[1735488458181,0.4261,3368.6,3368.2,0.4418]
[1735488458383,0.2974,3368.3,3368.2,0.4418]
[1735488458679,0.4261,3368.6,3368.2,0.4418]
[1735488458876,0.2974,3368.4,3368.2,0.4418]
[1735488459080,0.4589,3368.7,3368.2,0.4418]
[1735488459275,0.29738,3368.6,3368.3,0.7536]
[1735488460084,0.2974,3368.3,3368.2,0.4418]
[1735488460687,0.29737,3368.6,3368.1,3.50521]
[1735488460876,0.29739,3368.5,3368.2,0.72571]
[1735488461178,0.29739,3368.5,3368.3,0.2974]
[1735488461377,0.2974,3368.4,3368.1,3.50521]
[1735488461582,0.4589,3368.7,3368.1,3.2078]
[1735488461881,0.29739,3368.5,3368.2,0.2974]
[1735488462081,0.29739,3368.5,3368.1,44.0078]
[1735488462383,0.29739,3368.5,3368.3,0.2974]
[1735488462780,0.75627,3368.7,3368.4,0.29739]
[1735488463082,0.4589,3368.7,3368.5,0.8686]
[1735488463283,3.2078,3369.1,3368.5,0.8686]
[1735488463481,3.93427987,3369.2,3368.8,3.2078]
[1735488463783,3.93427987,3369.2,3368.8,3.50515]
[1735488463784,0.29733,3369.1,3368.8,3.50515]
[1735488463980,4.23160987,3369.2,3368.8,3.2078]
[1735488464184,0.29735,3369.0,3368.7,0.29736]
[1735488464383,0.29733,3369.1,3368.8,0.29735]
[1735488464578,3.93427987,3369.2,3368.6,0.4373]
[1735488464780,0.29736,3368.8,3368.6,0.4373]
[1735488465086,0.4396,3369.2,3368.6,0.4373]
[1735488466082,3.49467987,3369.0,3368.6,0.4373]
[1735488466287,0.29736,3368.7,3368.6,0.4373]
[1735488466485,0.29737,3368.6,3368.5,0.8686]
[1735488466883,6.70247987,3369.0,3368.5,0.8686]
[1735488467384,0.29737,3368.6,3368.5,0.8686]
[1735488468287,0.4464,3368.9,3368.4,7.85834924]
[1735488468489,0.71788,3368.5,3368.4,3.2078]
[1735488470991,0.2974,3368.3,3368.2,4.65054924]
[1735488472594,0.29742,3368.1,3368.0,7.85834924]
[1735488472894,0.29742,3368.1,3368.0,4.65054924]
[1735488474693,3.49467987,3368.2,3367.9,0.8985]
[1735488474888,0.29743,3368.0,3367.9,0.8985]
[1735488475494,0.29742,3368.1,3367.9,0.8985]
[1735488475700,0.29743,3368.0,3367.9,0.8985]
[1735488475893,0.29744,3367.8,3367.7,7.85834924]
[1735488476296,0.29742,3368.1,3367.7,8.30784924]
[1735488476495,0.29744,3367.9,3367.7,8.30784924]
[1735488476695,0.29743,3368.0,3367.7,8.60529924]
[1735488477298,0.29744,3367.9,3367.7,8.30784924]
[1735488477498,0.29741,3368.2,3367.7,8.60529924]
[1735488477690,0.29743,3368.0,3367.7,8.60529924]
[1735488479796,3.49467987,3368.3,3367.9,0.29744]
[1735488480094,0.29742,3368.2,3367.9,0.29744]
[1735488480286,3.49467987,3368.3,3367.9,0.29744]
[1735488480491,0.29741,3368.2,3367.9,0.29744]
[1735488480691,0.29742,3368.2,3367.9,0.29743]
[1735488481796,0.29742,3368.1,3367.9,0.29743]
[1735488481997,0.2974,3368.3,3368.0,0.29742]
[1735488482187,3.49467987,3368.4,3368.1,0.443]
[1735488482389,3.49467987,3368.4,3368.2,0.72921]
[1735488482600,3.49467987,3368.4,3368.3,0.2974]
[1735488482796,2.79507987,3368.4,3368.3,0.2974]
[1735488482993,0.69304087,3368.4,3368.3,5.2974]
[1735488483297,4.65151769,3368.6,3368.5,0.29738]
[1735488483493,4.65151769,3368.6,3368.5,45.50018]
[1735488484203,0.29731,3369.3,3369.0,0.29733]
[1735488484498,0.29731,3369.3,3369.2,3.2078]
[1735488484701,0.29731,3369.4,3369.2,3.2078]
[1735488484903,0.29731,3369.3,3369.2,3.2078]
[1735488487704,0.9099,3369.5,3368.9,4.66887947]
[1735488487705,0.29734,3369.0,3368.9,4.66887947]
[1735488488089,3.50514,3369.0,3368.9,3.96947947]
[1735488488400,3.94634,3369.0,3368.9,1.15047947]
[1735488488992,3.649,3369.0,3368.5,9.32816438]
[1735488489197,0.29741,3368.2,3367.9,7.8924192]
[1735488489799,3.2078,3368.6,3367.9,7.8924192]
[1735488490099,0.29741,3368.2,3367.9,8.1898492]
[1735488490303,0.29741,3368.2,3367.9,1.18653]
[1735488490900,0.29742,3368.1,3367.9,0.8891]
[1735488491101,0.29743,3368.0,3367.9,0.8891]
[1735488492196,0.29741,3368.2,3367.9,0.8891]
[1735488492402,0.29742,3368.1,3367.9,0.8891]
[1735488492605,0.4657,3368.4,3367.9,0.8891]
[1735488492903,3.2078,3368.6,3368.2,0.2974]
[1735488492904,8.15669769,3368.6,3368.2,0.2974]
[1735488493098,7.85931769,3368.6,3368.2,0.2974]
[1735488493296,0.29739,3368.4,3368.0,0.29742]
[1735488493499,0.29739,3368.4,3368.0,0.29743]
[1735488493699,0.29739,3368.4,3368.1,40.8]
[1735488493902,0.29739,3368.4,3368.1,41.09742]
[1735488495105,0.29739,3368.4,3368.1,0.29742]
[1735488495307,0.29739,3368.4,3367.9,1.3375]
[1735488495508,0.29739,3368.4,3368.0,0.29742]
[1735488495707,3.2078,3368.6,3368.1,0.29741]
[1735488495708,0.29739,3368.5,3368.1,0.29741]
[1735488496008,3.2078,3368.6,3367.9,1.3375]
[1735488496307,0.2974,3368.4,3368.0,0.29742]
[1735488496508,0.29741,3368.3,3367.9,1.63493]
[1735488496710,0.29738,3368.5,3367.9,1.63493]
[1735488497008,0.4658,3368.5,3367.9,1.3375]
[1735488497204,0.29743,3368.1,3367.9,1.3375]
[1735488497807,0.29742,3368.1,3367.9,1.3375]
[1735488498208,0.29742,3368.1,3367.9,0.8891]
[1735488498405,0.4658,3368.5,3367.9,0.8891]
[1735488498809,0.2974,3368.3,3367.9,1.18653]
[1735488500806,0.29739,3368.5,3368.1,0.29741]
[1735488501014,0.29739,3368.5,3367.9,0.8891]
[1735488501203,0.29739,3368.5,3368.1,0.29741]
[1735488502407,0.29739,3368.4,3368.1,0.29741]
[1735488502609,0.29739,3368.4,3368.0,0.29742]
[1735488503510,0.29739,3368.4,3368.1,0.29742]
[1735488503905,0.29739,3368.4,3367.9,7.8924192]
[1735488504112,0.29739,3368.4,3368.1,0.29742]
[1735488504310,0.29741,3368.3,3367.9,8.1898492]
[1735488504513,3.2078,3368.6,3367.9,8.1898492]
[1735488504814,0.29741,3368.2,3367.9,8.1898492]
[1735488505401,3.2078,3368.6,3367.9,7.8924192]
[1735488505705,0.29741,3368.2,3368.0,0.29742]
[1735488506310,0.29743,3368.0,3367.9,7.8924192]
[1735488506503,0.29743,3368.0,3367.9,7.0033192]
[1735488506707,2.52732464,3368.0,3367.9,7.0033192]
[1735488506902,2.52732464,3368.0,3367.9,5.80173644]
[1735488507920,0.29747,3367.5,3367.4,3.2078]
[1735488508910,2.22989464,3367.6,3367.0,3.2078]
[1735488509112,0.29751,3367.1,3367.0,3.2078]
[1735488510423,0.29752,3367.0,3366.9,0.4542]
[1735488510906,0.29756,3366.6,3366.4,3.2078]
[1735488511108,0.426,3366.9,3366.4,3.2078]
[1735488511315,0.29756,3366.5,3366.4,3.2078]
[1735488512715,1.3432,3366.9,3366.4,3.2078]
[1735488513013,0.29756,3366.5,3366.4,3.2078]
[1735488516914,1.3432,3366.9,3366.4,3.2078]
[1735488517114,0.29756,3366.5,3366.4,3.2078]
[1735488519015,1.3432,3366.9,3366.4,3.2078]
[1735488519213,0.29755,3366.7,3366.4,3.50537]
[1735488520108,0.29755,3366.6,3366.4,3.2078]
[1735488520511,1.3432,3366.9,3366.4,3.2078]
[1735488521014,0.29755,3366.6,3366.4,3.2078]
[1735488521209,1.3432,3366.9,3366.4,3.50536]
[1735488521614,0.29754,3366.8,3366.4,3.50536]
[1735488522116,0.29751,3367.1,3366.8,0.29753]
[1735488522414,3.2078,3367.2,3367.0,0.29751]
[1735488522612,0.29749,3367.3,3367.0,0.29751]
[1735488522917,0.29749,3367.3,3367.1,0.4211]
[1735488523413,5.73516464,3367.6,3367.3,0.29749]
[1735488523716,0.4439,3367.8,3367.5,0.29747]
[1735488523908,2.52733464,3367.9,3367.5,0.29747]
[1735488524110,2.52733464,3367.9,3367.3,3.2078]
[1735488524509,2.52733464,3367.9,3367.5,0.29747]
[1735488525109,0.29745,3367.8,3367.5,0.29747]
[1735488525309,2.52733464,3367.9,3367.5,0.29747]
[1735488525517,2.52733464,3367.9,3367.3,2.59967]
[1735488525717,2.52733464,3367.9,3367.6,0.29746]
[1735488525913,2.22989464,3367.9,3367.4,0.29748]
[1735488526117,3.50523,3368.0,3367.6,0.29746]
[1735488527021,5.43769464,3368.5,3367.7,3.2078]
[1735488527216,3.50519,3368.5,3367.8,0.4323]
[1735488527420,3.2078,3368.5,3368.3,0.2974]
[1735488527718,3.2078,3368.5,3368.3,0.29739]
[1735488528915,3.2078,3368.5,3368.2,0.2974]
[1735488529715,3.2078,3368.5,3367.9,0.4587]
[1735488529915,3.50519,3368.5,3368.1,0.29741]
[1735488534424,3.2078,3368.5,3367.9,0.4587]
[1735488534725,3.50518,3368.5,3368.1,0.29741]
[1735488535819,3.2078,3368.5,3368.0,0.4482]
[1735488536020,0.29739,3368.4,3368.0,0.74562]
[1735488536216,0.29741,3368.3,3368.0,0.4482]
[1735488536420,0.29741,3368.3,3367.9,0.75613]
[1735488536826,0.2974,3368.3,3367.9,0.75613]
[1735488537026,3.2078,3368.5,3367.9,0.4587]
[1735488537216,0.29742,3368.1,3367.9,0.4587]
[1735488539429,0.29743,3368.0,3367.9,0.4587]
[1735488539828,0.29744,3367.8,3367.7,3.2078]
[1735488542826,0.29746,3367.7,3367.5,0.29746]
[1735488543033,0.29746,3367.7,3367.6,3.2078]
[1735488546732,2.22989464,3367.8,3367.0,0.29751]
[1735488546929,0.29749,3367.3,3367.0,0.29751]
[1735488547236,2.22989464,3367.8,3367.1,0.2975]
[1735488547237,0.4614,3367.7,3367.1,0.2975]
[1735488547427,0.29749,3367.3,3367.1,0.2975]
[1735488547629,0.4614,3367.7,3367.1,0.2975]
[1735488547832,0.29749,3367.4,3367.1,0.2975]
[1735488548733,0.29749,3367.4,3367.2,0.29749]
[1735488549730,0.2975,3367.3,3367.1,0.2975]
[1735488550129,0.2975,3367.2,3367.1,0.2975]
[1735488551737,0.29751,3367.1,3367.0,0.29751]
[1735488554640,0.29749,3367.3,3367.2,0.29749]
[1735488555038,0.29747,3367.6,3367.5,0.29747]
[1735488555242,3.96666,3367.7,3367.6,0.29746]
[1735488555541,0.75886,3367.7,3367.6,0.29746]
[1735488556541,0.75886,3367.7,3367.5,0.29747]
[1735488556943,0.4614,3367.7,3367.6,0.71756]
[1735488557261,0.75885,3367.7,3367.6,0.71756]
[1735488557642,0.4614,3367.7,3367.6,0.71756]
[1735488557844,0.29743,3368.0,3367.7,0.29745]
[1735488558040,0.4426,3368.5,3367.8,2.22989464]
[1735488558343,0.4426,3368.5,3368.1,3.2078]
[1735488558533,0.73998,3368.5,3368.2,0.29741]
[1735488558735,0.73998,3368.5,3368.3,0.4596]
[1735488558932,3.2078,3368.7,3368.3,0.4596]
[1735488559143,3.50517,3368.7,3368.4,0.29739]
[1735488559446,3.2078,3368.7,3368.5,0.29738]
[1735488559738,3.2078,3368.7,3368.6,0.29737]
[1735488560863,0.4426,3369.2,3368.5,3.2078]
[1735488561031,0.4426,3369.2,3368.9,0.29734]
[1735488561233,0.4426,3369.2,3369.0,0.4596]
[1735488561434,3.50511,3369.3,3369.0,0.4596]
[1735488562042,0.29733,3369.2,3369.0,0.4596]
[1735488562638,3.2078,3369.3,3369.0,0.4596]
[1735488562949,3.2078,3369.3,3369.0,0.75694]
[1735488563145,3.2078,3369.3,3369.0,0.4596]
[1735488563345,3.50512,3369.3,3369.0,0.4596]
[1735488564041,3.2078,3369.3,3369.0,0.4596]
[1735488564237,3.2078,3369.3,3369.0,0.75693]
[1735488564642,3.2078,3369.3,3369.0,0.4596]
[1735488564844,3.2078,3369.3,3369.2,0.29732]
[1735488565544,0.049,3369.9,3369.2,3.2078]
[1735488565848,0.049,3369.9,3369.7,0.29727]
[1735488566050,0.049,3369.9,3369.8,0.4431]
[1735488566250,3.2568,3370.1,3369.8,0.4431]
[1735488566457,3.2568,3370.1,3369.8,0.74036]
[1735488566946,3.2568,3370.1,3369.8,0.4431]
[1735488567149,0.049,3370.1,3370.0,3.50505]
[1735488567352,0.049,3370.3,3370.1,0.29724]
[1735488567658,0.049,3370.3,3370.2,0.29723]
[1735488568543,3.2568,3370.8,3370.1,0.4402]
[1735488568749,3.2568,3370.8,3370.3,0.29722]
[1735488568941,3.2568,3370.8,3370.1,0.4402]
[1735488569147,3.2568,3370.8,3370.2,2.22989464]
[1735488569540,0.049,3370.8,3370.7,3.2078]
[1735488571543,0.049,3371.2,3370.8,0.29718]
[1735488571746,0.049,3371.2,3370.7,3.94729]
[1735488571948,0.049,3371.2,3370.8,0.29717]
[1735488572146,0.049,3371.2,3370.7,3.94728]
[1735488572346,0.34615,3371.2,3370.7,3.94728]
[1735488572546,0.049,3371.2,3370.7,3.6501]
[1735488572754,0.29718,3370.8,3370.7,3.2078]
[1735488575151,0.29722,3370.3,3370.2,0.443]
[1735488575461,5.43769464,3370.9,3370.0,3.2078]
[1735488575462,0.74296,3370.8,3370.0,3.63]
[1735488575653,0.29724,3370.1,3370.0,3.63]
[1735488576652,0.29724,3370.1,3370.0,3.2078]
[1735488576859,0.29728,3369.7,3369.6,0.4577]
[1735488578256,3.2078,3370.0,3369.6,0.4577]
[1735488578566,0.29727,3369.8,3369.6,0.4577]
[1735488579461,4.61306567,3370.8,3369.6,5.89539464]
[1735488579667,3.2078,3370.3,3369.6,3.6655]
[1735488580166,0.29727,3369.9,3369.6,3.96278]
[1735488580359,0.29726,3369.9,3369.6,3.96278]
[1735488582262,3.50503,3370.3,3370.0,0.29724]
[1735488582566,0.29725,3370.0,3369.8,0.29726]
[1735488583169,3.2078,3370.3,3369.7,0.4612]
[1735488583365,0.29724,3370.1,3369.8,0.29726]
[1735488583560,0.29723,3370.2,3369.8,0.29727]
[1735488583765,0.29725,3370.1,3369.8,0.29727]
[1735488584170,0.29726,3369.9,3369.7,0.75847]
[1735488585074,0.29727,3369.8,3369.7,0.4612]
[1735488585371,0.29726,3370.0,3369.7,0.75847]
[1735488585572,0.29726,3370.0,3369.8,0.29726]
[1735488586476,0.29723,3370.2,3369.7,0.4612]
[1735488586669,3.2078,3370.3,3370.1,0.29724]
[1735488586869,3.2078,3370.3,3369.7,0.4612]
[1735488587075,0.8794,3370.7,3369.7,0.4612]
[1735488587076,0.29723,3370.2,3370.0,3.2078]
[1735488587275,0.29722,3370.4,3370.1,0.29724]
[1735488587773,0.29722,3370.3,3369.7,0.4612]
[1735488588180,3.2078,3370.7,3370.0,3.2078]
[1735488588476,0.29722,3370.4,3370.1,0.29724]
[1735488589069,0.428,3370.6,3369.8,0.4206]
[1735488589272,0.29724,3370.2,3369.9,0.29726]
[1735488589973,0.29723,3370.3,3370.0,3.50504]
[1735488590669,0.29722,3370.4,3370.1,0.29724]
[1735488590870,0.29722,3370.4,3370.0,3.2078]
[1735488591180,0.428,3370.6,3369.6,3.6655]
[1735488591181,2.22989464,3370.3,3369.6,3.6655]
[1735488591376,0.29728,3369.7,3369.6,3.6655]
[1735488591571,0.29728,3369.7,3369.6,3.2078]
[1735488593978,0.29727,3369.8,3369.6,3.2078]
[1735488594181,0.29726,3369.9,3369.6,3.2078]
[1735488594878,1.63766,3370.0,3369.6,3.50508]
[1735488595067,1.3404,3370.0,3369.6,3.2078]
[1735488595270,0.29727,3369.8,3369.6,3.2078]
[1735488596071,1.3404,3370.0,3369.3,41.09731]
[1735488596072,0.29728,3369.7,3369.3,41.09731]
[1735488596383,1.3404,3370.0,3369.3,40.8]
[1735488596384,0.2973,3369.4,3369.3,40.8]
[1735488597974,2.08354,3370.0,3369.2,0.4638]
[1735488598480,2.08354,3370.0,3369.2,41.2638]
[1735488598675,0.29731,3369.4,3369.2,41.2638]
[1735488598881,0.29731,3369.4,3369.2,41.7022]
[1735488600582,0.29731,3369.3,3369.2,40.8]
[1735488600781,0.29733,3369.1,3369.0,3.2078]